fUSD/lending_fUSD_20240611
["ID","MTS","AMOUNT","RATE_DAILY","PERIOD"]
[329128528,1718127043972,-500.0,0.00021917,2]
[329128530,1718127043983,-500.0,0.00021917,2]
[329128532,1718127043995,-500.0,0.00021917,2]
[329128535,1718127044007,-500.0,0.00021917,2]
[329128537,1718127044022,-500.0,0.00021917,2]
[329128539,1718127044032,-500.0,0.00021917,2]
[329128541,1718127044043,-463.22190618,0.00021917,2]
[329128543,1718127044055,-500.0,0.00021917,2]
[329128545,1718127044066,-500.0,0.00021917,2]
[329128547,1718127044084,-500.0,0.00021917,2]
[329128549,1718127044101,-500.0,0.00021917,2]
[329128551,1718127044113,-500.0,0.00021917,2]
[329128553,1718127044124,-515.71637087,0.00021917,2]
[329128555,1718127044134,-500.0,0.00021917,2]
[329128557,1718127044145,-500.59,0.00021917,2]
[329128559,1718127044156,-500.0,0.00021917,2]
[329128561,1718127044168,-500.0,0.00021917,2]
[329128563,1718127044180,-500.0,0.00021917,2]
[329128565,1718127044191,-556.44,0.00021917,2]
[329128567,1718127044201,-333.56942583,0.00021917,2]
[329128569,1718127044212,-500.0,0.00021917,2]
[329128571,1718127044223,-500.0,0.00021917,2]
[329128573,1718127044235,-500.0,0.00021917,2]
[329128575,1718127044246,-500.0,0.00021917,2]
[329128577,1718127044256,-500.0,0.00021917,2]
[329128579,1718127044269,-500.0,0.00021917,2]
[329128581,1718127044279,-500.0,0.00021917,2]
[329128583,1718127044291,-500.0,0.00021917,2]
[329128585,1718127044305,-500.0,0.00021917,2]
[329128587,1718127044317,-250.0,0.00021917,2]
[329128589,1718127044328,-500.0,0.00021917,2]
[329128591,1718127044339,-516.25,0.00021917,2]
[329128593,1718127044349,-500.0,0.00021917,2]
[329128595,1718127044360,-500.0,0.00021917,2]
[329128597,1718127044372,-500.0,0.00021917,2]
[329128599,1718127044385,-635.41,0.00021917,2]
[329128601,1718127044397,-500.0,0.00021917,2]
[329128604,1718127044407,-500.0,0.00021917,2]
[329128606,1718127044418,-500.0,0.00021917,2]
[329128607,1718127044429,-522.77,0.00021917,2]
[329128609,1718127044439,-500.0,0.00021917,2]
[329128611,1718127044451,-500.0,0.00021917,2]
[329128613,1718127044461,-555.75,0.00021917,2]
[329128615,1718127044473,-500.0,0.00021917,2]
[329128617,1718127044485,-377.13527092,0.00021917,2]
[329128689,1718127045262,-122.86472908,0.00021917,2]
[329128691,1718127045275,-500.0,0.00021917,2]
[329128693,1718127045286,-756.88,0.00021917,2]
[329128695,1718127045299,-500.0,0.00021917,2]
[329128697,1718127045312,-512.64,0.00021917,2]
[329128699,1718127045322,-303.50780331,0.00021917,2]
[329128700,1718127045333,-500.0,0.00021917,2]
[329128702,1718127045346,-500.0,0.00021917,2]
[329128704,1718127045357,-640.06,0.00021917,2]
[329128706,1718127045367,-500.0,0.00021917,2]
[329128708,1718127045378,-500.0,0.00021917,2]
[329128710,1718127045390,-500.0,0.00021917,2]
[329128711,1718127045401,-508.15,0.00021917,2]
[329128714,1718127045412,-500.0,0.00021917,2]
[329128716,1718127045424,-500.0,0.00021917,2]
[329128717,1718127045434,-500.0,0.00021917,2]
[329128719,1718127045444,-1379.57,0.00021917,2]
[329128721,1718127045455,-500.0,0.00021917,2]
[329128723,1718127045468,-500.0,0.00021917,2]
[329128725,1718127045479,-500.0,0.00021917,2]
[329128727,1718127045490,-518.13,0.00021917,2]
[329128729,1718127045500,-500.0,0.00021917,2]
[329128731,1718127045511,-500.0,0.00021917,2]
[329128733,1718127045526,-500.0,0.00021917,2]
[329128735,1718127045537,-1167.88,0.00021917,2]
[329128737,1718127045547,-500.0,0.00021917,2]
[329128739,1718127045560,-500.0,0.00021917,2]
[329128741,1718127045572,-500.0,0.00021917,2]
[329128743,1718127045585,-500.0,0.00021917,2]
[329128745,1718127045596,-500.0,0.00021917,2]
[329128747,1718127045611,-1000.37,0.00021917,2]
[329128749,1718127045622,-500.0,0.00021917,2]
[329128751,1718127045634,-500.0,0.00021917,2]
[329128753,1718127045647,-500.0,0.00021917,2]
[329128755,1718127045658,-500.0,0.00021917,2]
[329128757,1718127045671,-500.0,0.00021917,2]
[329128759,1718127045683,-677.43,0.00021917,2]
[329128761,1718127045695,-500.0,0.00021917,2]
[329128763,1718127045706,-500.0,0.00021917,2]
[329128765,1718127045717,-500.0,0.00021917,2]
[329128767,1718127045728,-358.81859082,0.00021917,2]
[329128769,1718127045739,-648.44,0.00021917,2]
[329128771,1718127045751,-500.0,0.00021917,2]
[329128773,1718127045762,-500.0,0.00021917,2]
[329128775,1718127045777,-634.2438304,0.00021917,2]
[329128777,1718127045787,-500.0,0.00021917,2]
[329128779,1718127045799,-500.0,0.00021917,2]
[329128781,1718127045809,-623.88,0.00021917,2]
[329128783,1718127045819,-500.0,0.00021917,2]
[329128785,1718127045829,-500.0,0.00021917,2]
[329128786,1718127045840,-618.03659563,0.00021917,2]
[329128787,1718127045850,-500.0,0.00021917,2]
[329128788,1718127045861,-784.12,0.00021917,2]
[329128789,1718127045872,-500.0,0.00021917,2]
[329128790,1718127045883,-500.0,0.00021917,2]
[329128791,1718127045894,-500.0,0.00021917,2]
[329128792,1718127045904,-500.0,0.00021917,2]
[329128793,1718127045915,-500.0,0.00021917,2]
[329128794,1718127045925,-1126.86,0.00021917,2]
[329128795,1718127045936,-500.0,0.00021917,2]
[329128796,1718127045946,-500.0,0.00021917,2]
[329128797,1718127045957,-500.0,0.00021917,2]
[329128798,1718127045968,-500.0,0.00021917,2]
[329128800,1718127045979,-500.0,0.00021917,2]
[329128802,1718127045989,-1427.87,0.00021917,2]
[329128805,1718127046001,-500.0,0.00021917,2]
[329128808,1718127046012,-500.0,0.00021917,2]
[329128811,1718127046025,-954.12,0.00021917,2]
[329128815,1718127046036,-877.74,0.00021917,2]
[329128818,1718127046048,-1184.55,0.00021917,2]
[329128821,1718127046060,-500.0,0.00021917,2]
[329128824,1718127046070,-500.0,0.00021917,2]
[329128827,1718127046094,-544.81,0.00021917,2]
[329128829,1718127046106,-575.87,0.00021917,2]
[329128833,1718127046117,-500.0,0.00021917,2]
[329128835,1718127046127,-500.0,0.00021917,2]
[329128838,1718127046138,-500.0,0.00021917,2]
[329128841,1718127046149,-500.0,0.00021917,2]
[329128844,1718127046160,-552.59,0.00021917,2]
[329128847,1718127046172,-500.0,0.00021917,2]
[329128850,1718127046183,-558.77,0.00021917,2]
[329128853,1718127046195,-603.01,0.00021917,2]
[329128856,1718127046206,-500.0,0.00021917,2]
[329128859,1718127046217,-500.0,0.00021917,2]
[329128862,1718127046227,-500.0,0.00021917,2]
[329128865,1718127046238,-500.0,0.00021917,2]
[329128869,1718127046251,-500.0,0.00021917,2]
[329128872,1718127046262,-500.0,0.00021917,2]
[329128875,1718127046278,-500.0,0.00021917,2]
[329128877,1718127046288,-500.0,0.00021917,2]
[329128879,1718127046302,-500.0,0.00021917,2]
[329128881,1718127046317,-1027.1,0.00021917,2]
[329128884,1718127046329,-500.0,0.00021917,2]
[329128887,1718127046342,-500.0,0.00021917,2]
[329128890,1718127046356,-985.7,0.00021917,2]
[329128893,1718127046369,-500.0,0.00021917,2]
[329128896,1718127046382,-637.56,0.00021917,2]
[329128899,1718127046394,-567.18,0.00021917,2]
[329128902,1718127046406,-1148.49,0.00021917,2]
[329128905,1718127046417,-663.14,0.00021917,2]
[329128908,1718127046429,-806.99,0.00021917,2]
[329128911,1718127046440,-500.0,0.00021917,2]
[329128914,1718127046453,-1795.29,0.00021917,2]
[329128917,1718127046463,-1060.05,0.00021917,2]
[329128920,1718127046474,-500.0,0.00021917,2]
[329128923,1718127046485,-1335.39511691,0.00021917,2]
[329128948,1718127046745,-121.30488309,0.00021917,2]
[329128950,1718127046758,-500.0,0.00021917,2]
[329128952,1718127046773,-500.0,0.00021917,2]
[329128954,1718127046784,-500.0,0.00021917,2]
[329128956,1718127046796,-500.0,0.00021917,2]
[329128958,1718127046810,-500.0,0.00021917,2]
[329128960,1718127046820,-500.0,0.00021917,2]
[329128963,1718127046831,-500.0,0.00021917,2]
[329128965,1718127046842,-500.0,0.00021917,2]
[329128966,1718127046853,-1010.79,0.00021917,2]
[329128969,1718127046864,-500.0,0.00021917,2]
[329128971,1718127046875,-2643.2,0.00021917,2]
[329128972,1718127046885,-1612.8,0.00021917,2]
[329128975,1718127046896,-327.93725092,0.00021917,2]
[329128977,1718127046909,-172.06274908,0.00021917,2]
[329128979,1718127046920,-500.0,0.00021917,2]
[329128981,1718127046931,-500.0,0.00021917,2]
[329128983,1718127046941,-500.0,0.00021917,2]
[329128985,1718127046951,-500.0,0.00021917,2]
[329128987,1718127046962,-1201.85,0.00021917,2]
[329128989,1718127046972,-500.0,0.00021917,2]
[329128991,1718127046982,-666.32,0.00021917,2]
[329128993,1718127046993,-500.0,0.00021917,2]
[329128995,1718127047003,-559.82,0.00021917,2]
[329128997,1718127047012,-500.0,0.00021917,2]
[329128999,1718127047027,-500.0,0.00021917,2]
[329129001,1718127047038,-679.61,0.00021917,2]
[329129003,1718127047050,-500.0,0.00021917,2]
[329129005,1718127047061,-500.0,0.00021917,2]
[329129007,1718127047074,-500.0,0.00021917,2]
[329129009,1718127047095,-2168.04,0.00021917,2]
[329129011,1718127047107,-799.05,0.00021917,2]
[329129013,1718127047118,-306.57672078,0.00021917,2]
[329129019,1718127047178,-232.69327922,0.00021917,2]
[329129021,1718127047190,-562.29,0.00021917,2]
[329129024,1718127047204,-508.57475209,0.00021917,2]
[329129026,1718127047217,-33.43524791,0.00021917,2]
[329129028,1718127047227,-500.0,0.00021917,2]
[329129030,1718127047238,-500.0,0.00021917,2]
[329129032,1718127047253,-1740.8,0.00021917,2]
[329129034,1718127047264,-500.0,0.00021917,2]
[329129036,1718127047283,-104.36475209,0.00021917,2]
[329129039,1718127047301,-1096.50524791,0.00021917,2]
[329129041,1718127047316,-500.0,0.00021917,2]
[329129043,1718127047326,-521.70664033,0.00021917,2]
[329129045,1718127047340,-539.05470526,0.00021917,2]
[329129047,1718127047355,-41.01529474,0.00021917,2]
[329129049,1718127047371,-548.97443625,0.00021917,2]
[329129051,1718127047388,-1543.97556375,0.00021917,2]
[329129053,1718127047400,-500.0,0.00021917,2]
[329129055,1718127047412,-500.0,0.00021917,2]
[329129057,1718127047423,-500.0,0.00021917,2]
[329129059,1718127047433,-500.0,0.00021917,2]
[329129061,1718127047444,-500.0,0.00021917,2]
[329129063,1718127047456,-500.0,0.00021917,2]
[329129065,1718127047468,-2406.54,0.00021917,2]
[329129067,1718127047479,-500.0,0.00021917,2]
[329129068,1718127047490,-500.0,0.00021917,2]
[329129070,1718127047501,-158.66295816,0.00021917,2]
[329129072,1718127047513,-500.0,0.00021917,2]
[329129075,1718127047538,-500.0,0.00021917,2]
[329129077,1718127047555,-997.88,0.00021917,2]
[329129079,1718127047566,-500.0,0.00021917,2]
[329129081,1718127047577,-500.0,0.00021917,2]
[329129082,1718127047589,-500.0,0.00021917,2]
[329129084,1718127047601,-744.02,0.00021917,2]
[329129086,1718127047611,-962.66,0.00021917,2]
[329129088,1718127047621,-500.0,0.00021917,2]
[329129090,1718127047631,-500.0,0.00021917,2]
[329129092,1718127047641,-500.0,0.00021917,2]
[329129094,1718127047652,-1823.32,0.00021917,2]
[329129096,1718127047663,-2471.84,0.00021917,2]
[329129098,1718127047675,-500.0,0.00021917,2]
[329129100,1718127047686,-500.0,0.00021917,2]
[329129102,1718127047696,-500.0,0.00021917,2]
[329129104,1718127047706,-500.0,0.00021917,2]
[329129106,1718127047717,-891.57,0.00021917,2]
[329129108,1718127047728,-723.32,0.00021917,2]
[329129110,1718127047739,-1295.05,0.00021917,2]
[329129112,1718127047750,-500.0,0.00021917,2]
[329129114,1718127047760,-500.0,0.00021917,2]
[329129116,1718127047777,-571.5262892,0.00021917,2]
[329129118,1718127047789,-1095.9,0.00021917,2]
[329129120,1718127047801,-500.0,0.00021917,2]
[329129122,1718127047812,-500.0,0.00021917,2]
[329129124,1718127047823,-500.0,0.00021917,2]
[329129126,1718127047834,-510.17,0.00021917,2]
[329129128,1718127047844,-500.0,0.00021917,2]
[329129130,1718127047857,-671.09,0.00021917,2]
[329129132,1718127047868,-500.0,0.00021917,2]
[329129134,1718127047879,-500.0,0.00021917,2]
[329129136,1718127047889,-500.0,0.00021917,2]
[329129138,1718127047899,-500.0,0.00021917,2]
[329129140,1718127047909,-903.66,0.00021917,2]
[329129142,1718127047921,-1009.48,0.00021917,2]
[329129144,1718127047931,-500.0,0.00021917,2]
[329129146,1718127047941,-500.0,0.00021917,2]
[329129148,1718127047951,-589.39,0.00021917,2]
[329129150,1718127047962,-500.0,0.00021917,2]
[329129152,1718127047973,-500.0,0.00021917,2]
[329129154,1718127047985,-500.0,0.00021917,2]
[329129156,1718127048001,-500.0,0.00021917,2]
[329129158,1718127048011,-781.26,0.00021917,2]
[329129160,1718127048028,-500.0,0.00021917,2]
[329129162,1718127048040,-500.0,0.00021917,2]
[329129164,1718127048053,-500.0,0.00021917,2]
[329129166,1718127048063,-500.0,0.00021917,2]
[329129168,1718127048074,-500.0,0.00021917,2]
[329129170,1718127048100,-1311.28,0.00021917,2]
[329129172,1718127048114,-500.0,0.00021917,2]
[329129174,1718127048126,-547.22,0.00021917,2]
[329129176,1718127048138,-500.0,0.00021917,2]
[329129178,1718127048150,-752.21,0.00021917,2]
[329129180,1718127048161,-500.0,0.00021917,2]
[329129182,1718127048171,-151.0,0.00021917,2]
[329129184,1718127048187,-500.0,0.00021917,2]
[329129186,1718127048198,-548.6,0.00021917,2]
[329129188,1718127048208,-875.95,0.00021917,2]
[329129190,1718127048219,-500.0,0.00021917,2]
[329129192,1718127048230,-500.0,0.00021917,2]
[329129194,1718127048240,-500.0,0.00021917,2]
[329129196,1718127048250,-500.0,0.00021917,2]
[329129198,1718127048260,-466.84960031,0.00021917,2]
[329129200,1718127048275,-500.0,0.00021917,2]
[329129202,1718127048285,-500.0,0.00021917,2]
[329129204,1718127048295,-500.0,0.00021917,2]
[329129206,1718127048307,-500.0,0.00021917,2]
[329129207,1718127048317,-1883.21,0.00021917,2]
[329129209,1718127048327,-738.6,0.00021917,2]
[329129212,1718127048339,-500.0,0.00021917,2]
[329129213,1718127048349,-585.65,0.00021917,2]
[329129215,1718127048359,-500.0,0.00021917,2]
[329129217,1718127048368,-500.0,0.00021917,2]
[329129219,1718127048380,-405.87741879,0.00021917,2]
[329129221,1718127048390,-832.68,0.00021917,2]
[329129223,1718127048401,-558.96,0.00021917,2]
[329129225,1718127048412,-500.0,0.00021917,2]
[329129227,1718127048423,-500.0,0.00021917,2]
[329129229,1718127048433,-500.0,0.00021917,2]
[329129231,1718127048443,-1086.91,0.00021917,2]
[329129234,1718127048454,-500.0,0.00021917,2]
[329129235,1718127048464,-500.0,0.00021917,2]
[329129237,1718127048474,-530.93,0.00021917,2]
[329129238,1718127048484,-500.0,0.00021917,2]
[329129239,1718127048494,-624.83,0.00021917,2]
[329129240,1718127048504,-500.0,0.00021917,2]
[329129241,1718127048514,-500.0,0.00021917,2]
[329129242,1718127048529,-935.05,0.00021917,2]
[329129243,1718127048540,-734.14,0.00021917,2]
[329129244,1718127048550,-1560.33,0.00021917,2]
[329129245,1718127048560,-870.24,0.00021917,2]
[329129247,1718127048572,-523.88,0.00021917,2]
[329129249,1718127048583,-500.0,0.00021917,2]
[329129251,1718127048594,-533.78,0.00021917,2]
[329129253,1718127048607,-151.0,0.00021917,2]
[329129255,1718127048617,-955.25,0.00021917,2]
[329129257,1718127048628,-500.0,0.00021917,2]
[329129259,1718127048638,-322.486079,0.00021917,2]
[329129261,1718127048650,-500.0,0.00021917,2]
[329129263,1718127048660,-874.67,0.00021917,2]
[329129265,1718127048670,-322.486079,0.00021917,2]
[329129267,1718127048681,-500.0,0.00021917,2]
[329129269,1718127048691,-1113.63,0.00021917,2]
[329129271,1718127048702,-863.49,0.00021917,2]
[329129273,1718127048713,-500.0,0.00021917,2]
[329129275,1718127048726,-712.37,0.00021917,2]
[329129277,1718127048742,-500.0,0.00021917,2]
[329129279,1718127048753,-500.0,0.00021917,2]
[329129281,1718127048763,-500.0,0.00021917,2]
[329129283,1718127048775,-500.0,0.00021917,2]
[329129285,1718127048786,-500.0,0.00021917,2]
[329129287,1718127048796,-500.0,0.00021917,2]
[329129289,1718127048806,-500.0,0.00021917,2]
[329129291,1718127048816,-500.0,0.00021917,2]
[329129293,1718127048827,-564.88661795,0.00021917,2]
[329129295,1718127048837,-970.0,0.00021917,2]
[329129297,1718127048848,-500.0,0.00021917,2]
[329129299,1718127048859,-500.0,0.00021917,2]
[329129301,1718127048869,-500.0,0.00021917,2]
[329129303,1718127048880,-500.0,0.00021917,2]
[329129305,1718127048891,-500.0,0.00021917,2]
[329129307,1718127048901,-2089.02,0.00021917,2]
[329129309,1718127048910,-691.48,0.00021917,2]
[329129311,1718127048921,-500.0,0.00021917,2]
[329129313,1718127048931,-1230.27,0.00021917,2]
[329129315,1718127048941,-806.39,0.00021917,2]
[329129317,1718127048951,-500.0,0.00021917,2]
[329129319,1718127048961,-500.0,0.00021917,2]
[329129321,1718127048972,-500.0,0.00021917,2]
[329129323,1718127048982,-500.0,0.00021917,2]
[329129325,1718127048992,-500.0,0.00021917,2]
[329129327,1718127049002,-500.0,0.00021917,2]
[329129329,1718127049012,-500.0,0.00021917,2]
[329129331,1718127049025,-500.0,0.00021917,2]
[329129333,1718127049035,-500.0,0.00021917,2]
[329129335,1718127049045,-231.90481408,0.00021917,2]
[329129337,1718127049055,-500.0,0.00021917,2]
[329129339,1718127049064,-500.0,0.00021917,2]
[329129341,1718127049074,-500.0,0.00021917,2]
[329129343,1718127049089,-500.0,0.00021917,2]
[329129345,1718127049101,-725.96,0.00021917,2]
[329129347,1718127049112,-500.0,0.00021917,2]
[329129349,1718127049123,-500.0,0.00021917,2]
[329129351,1718127049134,-151.0,0.00021917,2]
[329129353,1718127049145,-914.52,0.00021917,2]
[329129355,1718127049155,-574.7,0.00021917,2]
[329129357,1718127049166,-500.0,0.00021917,2]
[329129359,1718127049177,-500.0,0.00021917,2]
[329129361,1718127049188,-500.0,0.00021917,2]
[329129363,1718127049198,-556.96,0.00021917,2]
[329129365,1718127049209,-1476.93,0.00021917,2]
[329129367,1718127049221,-500.0,0.00021917,2]
[329129369,1718127049232,-151.0,0.00021917,2]
[329129371,1718127049243,-500.0,0.00021917,2]
[329129373,1718127049255,-500.0,0.00021917,2]
[329129375,1718127049267,-500.0,0.00021917,2]
[329129377,1718127049286,-500.0,0.00021917,2]
[329129379,1718127049298,-174.97732983,0.00021917,2]
[329129381,1718127049310,-500.0,0.00021917,2]
[329129383,1718127049325,-542.80479754,0.00021917,2]
[329129385,1718127049336,-151.0,0.00021917,2]
[329129388,1718127049347,-965.83,0.00021917,2]
[329129390,1718127049359,-500.0,0.00021917,2]
[329129391,1718127049370,-404.37478098,0.00021917,2]
[329129394,1718127049384,-777.29,0.00021917,2]
[329129396,1718127049398,-608.23,0.00021917,2]
[329129398,1718127049410,-151.0,0.00021917,2]
[329129400,1718127049421,-500.0,0.00021917,2]
[329129402,1718127049431,-627.53,0.00021917,2]
[329129404,1718127049443,-500.0,0.00021917,2]
[329129405,1718127049454,-500.0,0.00021917,2]
[329129407,1718127049465,-500.0,0.00021917,2]
[329129410,1718127049480,-151.0,0.00021917,2]
[329129412,1718127049492,-171.223895,0.00021917,2]
[329129414,1718127049510,-500.0,0.00021917,2]
[329129416,1718127049522,-510.80026375,0.00021917,2]
[329129417,1718127049534,-570.37,0.00021917,2]
[329129419,1718127049545,-500.0,0.00021917,2]
[329129421,1718127049558,-151.0,0.00021917,2]
[329129423,1718127049569,-500.0,0.00021917,2]
[329129425,1718127049581,-1104.62,0.00021917,2]
[329129427,1718127049592,-1023.5,0.00021917,2]
[329129429,1718127049608,-500.0,0.00021917,2]
[329129432,1718127049624,-500.0,0.00021917,2]
[329129434,1718127049646,-2167.3,0.00021917,2]
[329129436,1718127049657,-609.85,0.00021917,2]
[329129438,1718127049671,-500.0,0.00021917,2]
[329129440,1718127049683,-500.0,0.00021917,2]
[329129442,1718127049695,-500.0,0.00021917,2]
[329129444,1718127049706,-151.0,0.00021917,2]
[329129446,1718127049718,-500.0,0.00021917,2]
[329129448,1718127049729,-500.0,0.00021917,2]
[329129450,1718127049741,-2256.28,0.00021917,2]
[329129452,1718127049753,-500.0,0.00021917,2]
[329129454,1718127049764,-500.0,0.00021917,2]
[329129456,1718127049777,-500.0,0.00021917,2]
[329129457,1718127049788,-500.0,0.00021917,2]
[329129460,1718127049802,-500.0,0.00021917,2]
[329129462,1718127049815,-500.0,0.00021917,2]
[329129464,1718127049826,-500.0,0.00021917,2]
[329129466,1718127049838,-151.0,0.00021917,2]
[329129468,1718127049849,-500.0,0.00021917,2]
[329129470,1718127049865,-962.27,0.00021917,2]
[329129472,1718127049876,-151.0,0.00021917,2]
[329129474,1718127049888,-507.2712768,0.00021917,2]
[329129476,1718127049899,-500.0,0.00021917,2]
[329129478,1718127049911,-151.0,0.00021917,2]
[329129480,1718127049924,-151.0,0.00021917,2]
[329129482,1718127049937,-507.31920859,0.00021917,2]
[329129484,1718127049952,-580.093673,0.00021917,2]
[329129486,1718127049965,-610.07,0.00021917,2]
[329129488,1718127049976,-924.91,0.00021917,2]
[329129490,1718127049987,-155.208532,0.00021917,2]
[329129492,1718127050000,-500.0,0.00021917,2]
[329129495,1718127050011,-534.28,0.00021917,2]
[329129497,1718127050026,-2262.44,0.00021917,2]
[329129499,1718127050038,-1771.98,0.00021917,2]
[329129500,1718127050050,-500.0,0.00021917,2]
[329129502,1718127050062,-500.0,0.00021917,2]
[329129504,1718127050073,-500.0,0.00021917,2]
[329129524,1718127050316,-500.0,0.00021917,2]
[329129526,1718127050327,-500.0,0.00021917,2]
[329129528,1718127050338,-151.0,0.00021917,2]
[329129530,1718127050351,-1270.79,0.00021917,2]
[329129532,1718127050363,-500.0,0.00021917,2]
[329129534,1718127050374,-500.0,0.00021917,2]
[329129536,1718127050387,-500.0,0.00021917,2]
[329129538,1718127050408,-500.0,0.00021917,2]
[329129540,1718127050419,-1080.39,0.00021917,2]
[329129542,1718127050430,-500.0,0.00021917,2]
[329129544,1718127050441,-151.0,0.00021917,2]
[329129546,1718127050452,-151.0,0.00021917,2]
[329129548,1718127050464,-500.0,0.00021917,2]
[329129550,1718127050475,-610.21,0.00021917,2]
[329129552,1718127050486,-819.73,0.00021917,2]
[329129554,1718127050498,-500.0,0.00021917,2]
[329129556,1718127050510,-500.0,0.00021917,2]
[329129558,1718127050526,-756.68,0.00021917,2]
[329129560,1718127050537,-1034.36,0.00021917,2]
[329129562,1718127050548,-500.0,0.00021917,2]
[329129564,1718127050559,-500.0,0.00021917,2]
[329129566,1718127050570,-500.0,0.00021917,2]
[329129568,1718127050581,-355.77985486,0.00021917,2]
[329129570,1718127050592,-381.49,0.00021917,2]
[329129572,1718127050604,-500.0,0.00021917,2]
[329129574,1718127050616,-1507.95,0.00021917,2]
[329129576,1718127050627,-503.29571742,0.00021917,2]
[329129578,1718127050639,-500.0,0.00021917,2]
[329129580,1718127050650,-1709.44,0.00021917,2]
[329129582,1718127050661,-500.0,0.00021917,2]
[329129584,1718127050672,-500.0,0.00021917,2]
[329129586,1718127050683,-500.0,0.00021917,2]
[329129588,1718127050695,-2092.5,0.00021917,2]
[329129590,1718127050707,-852.06,0.00021917,2]
[329129592,1718127050718,-500.0,0.00021917,2]
[329129594,1718127050729,-164.167133,0.00021917,2]
[329129596,1718127050740,-500.0,0.00021917,2]
[329129598,1718127050751,-500.0,0.00021917,2]
[329129600,1718127050762,-3365.66,0.00021917,2]
[329129602,1718127050774,-500.0,0.00021917,2]
[329129604,1718127050785,-1092.59,0.00021917,2]
[329129606,1718127050795,-500.0,0.00021917,2]
[329129608,1718127050806,-500.0,0.00021917,2]
[329129610,1718127050816,-4612.4,0.00021917,2]
[329129612,1718127050827,-160.077414,0.00021917,2]
[329129614,1718127050838,-500.0,0.00021917,2]
[329129615,1718127050848,-500.0,0.00021917,2]
[329129616,1718127050859,-563.34,0.00021917,2]
[329129617,1718127050869,-1651.25,0.00021917,2]
[329129618,1718127050880,-567.17,0.00021917,2]
[329129619,1718127050891,-500.0,0.00021917,2]
[329129620,1718127050902,-500.0,0.00021917,2]
[329129621,1718127050912,-500.0,0.00021917,2]
[329129622,1718127050923,-2792.77,0.00021917,2]
[329129624,1718127050934,-500.0,0.00021917,2]
[329129626,1718127050944,-500.0,0.00021917,2]
[329129628,1718127050955,-1060.44,0.00021917,2]
[329129630,1718127050965,-500.0,0.00021917,2]
[329129632,1718127050976,-500.0,0.00021917,2]
[329129634,1718127050987,-535.32746286,0.00021917,2]
[329129636,1718127050998,-551.6,0.00021917,2]
[329129638,1718127051009,-500.0,0.00021917,2]
[329129640,1718127051022,-500.0,0.00021917,2]
[329129642,1718127051032,-10728.96,0.00021917,2]
[329129644,1718127051043,-151.0,0.00021917,2]
[329129646,1718127051053,-170.018284,0.00021917,2]
[329129648,1718127051064,-500.0,0.00021917,2]
[329129650,1718127051075,-154.05089175,0.00021917,2]
[329129652,1718127051101,-1508.6,0.00021917,2]